[Event "Early-Titled-Tuesday-Blitz-April-02-2024"]
[Site "Chess.com"]
[Date "2024.04.02"]
[Round "4"]
[White "GlavkonVVS"]
[Black "Al_Shima"]
[Result "0-1"]
[WhiteElo "2650"]
[BlackElo "2469"]
[TimeControl "180+1"]
[EndTime "8:39:20 PDT"]
[Termination "Al_Shima won by resignation"]

1. c4 {[%clk 0:03:00.9]} 1... e5 {[%clk 0:02:59.6]} 2. Nc3 {[%clk 0:03:00.1]}
2... Nf6 {[%clk 0:02:59.9]} 3. g3 {[%clk 0:02:59.3]} 3... Bb4 {[%clk 0:02:58]}
4. Bg2 {[%clk 0:02:59.3]} 4... O-O {[%clk 0:02:57.5]} 5. Nf3 {[%clk 0:02:58.9]}
5... Re8 {[%clk 0:02:57.1]} 6. O-O {[%clk 0:02:58.9]} 6... d6 {[%clk 0:02:57.2]}
7. d3 {[%clk 0:02:58.7]} 7... Bxc3 {[%clk 0:02:56.1]} 8. bxc3 {[%clk 0:02:58.5]}
8... Nc6 {[%clk 0:02:53.3]} 9. Rb1 {[%clk 0:02:58.2]} 9... e4 {[%clk 0:02:32]}
10. Nd4 {[%clk 0:02:55.3]} 10... Nxd4 {[%clk 0:02:27.4]} 11. cxd4 {[%clk
0:02:55.1]} 11... exd3 {[%clk 0:02:27.4]} 12. Qxd3 {[%clk 0:02:47.2]} 12... c6
{[%clk 0:02:23.8]} 13. e4 {[%clk 0:02:44]} 13... h6 {[%clk 0:02:11]} 14. f4
{[%clk 0:02:30.3]} 14... Nd7 {[%clk 0:01:47.5]} 15. Bb2 {[%clk 0:02:22.8]} 15...
Nf8 {[%clk 0:01:24.4]} 16. d5 {[%clk 0:02:19.4]} 16... cxd5 {[%clk 0:01:12.6]}
17. cxd5 {[%clk 0:02:16.2]} 17... Nd7 {[%clk 0:00:43.7]} 18. Rfe1 {[%clk
0:02:10.4]} 18... f6 {[%clk 0:00:41.9]} 19. Bd4 {[%clk 0:02:02.7]} 19... b6
{[%clk 0:00:41.9]} 20. Rbd1 {[%clk 0:01:19.3]} 20... Bb7 {[%clk 0:00:38.3]} 21.
Qa3 {[%clk 0:01:09.6]} 21... Nc5 {[%clk 0:00:31.7]} 22. e5 {[%clk 0:01:09.5]}
22... fxe5 {[%clk 0:00:29.4]} 23. fxe5 {[%clk 0:01:09.7]} 23... Qc7 {[%clk
0:00:19]} 24. e6 {[%clk 0:01:08.8]} 24... a5 {[%clk 0:00:16.5]} 25. Qf3 {[%clk
0:01:01.3]} 25... Rxe6 {[%clk 0:00:13.3]} 26. dxe6 {[%clk 0:00:58.8]} 26... Bxf3
{[%clk 0:00:12.8]} 27. Bxf3 {[%clk 0:00:59.3]} 27... Re8 {[%clk 0:00:12.9]} 28.
Bd5 {[%clk 0:00:58.8]} 28... Kh7 {[%clk 0:00:11.7]} 29. Re3 {[%clk 0:00:51.6]}
29... Re7 {[%clk 0:00:10.9]} 30. Rf1 {[%clk 0:00:50.3]} 30... Qc8 {[%clk
0:00:07]} 31. Rf7 {[%clk 0:00:49.3]} 31... Qe8 {[%clk 0:00:04.7]} 32. Ref3
{[%clk 0:00:42]} 32... Kg8 {[%clk 0:00:01.7]} 33. Rxe7 {[%clk 0:00:40.7]} 33...
Qxe7 {[%clk 0:00:02.6]} 34. Rf7 {[%clk 0:00:40.8]} 34... Qe8 {[%clk 0:00:01.6]}
35. Rxg7+ {[%clk 0:00:40.7]} 35... Kf8 {[%clk 0:00:02]} 36. e7+ {[%clk
0:00:38.7]} 36... Qxe7 {[%clk 0:00:02.6]} 37. Rxe7 {[%clk 0:00:39]} 37... Kxe7
{[%clk 0:00:03.5]} 38. Kf2 {[%clk 0:00:38.1]} 38... b5 {[%clk 0:00:02.7]} 39.
Ke3 {[%clk 0:00:37.6]} 39... Nd7 {[%clk 0:00:02.7]} 40. Bc6 {[%clk 0:00:36.6]}
40... b4 {[%clk 0:00:03]} 41. Kd3 {[%clk 0:00:35.6]} 41... Nf6 {[%clk
0:00:02.1]} 42. Bb6 {[%clk 0:00:33.9]} 42... Ng4 {[%clk 0:00:02.3]} 43. h3
{[%clk 0:00:33.9]} 43... Ne5+ {[%clk 0:00:02.9]} 44. Ke4 {[%clk 0:00:33]} 44...
Nxc6 {[%clk 0:00:03.8]} 45. Kd5 {[%clk 0:00:33.2]} 45... Kd7 {[%clk 0:00:03.9]}
46. h4 {[%clk 0:00:31.8]} 46... a4 {[%clk 0:00:03]} 47. Kc4 {[%clk 0:00:29.8]}
47... d5+ {[%clk 0:00:02.3]} 48. Kxd5 {[%clk 0:00:27.1]} 48... b3 {[%clk
0:00:02.7]} 49. axb3 {[%clk 0:00:26.1]} 49... axb3 {[%clk 0:00:03.6]} 0-1

[Event "Early-Titled-Tuesday-Blitz-April-02-2024"]
[Site "Chess.com"]
[Date "2024.04.02"]
[Round "4"]
[White "Durarbayli"]
[Black "AlexeiShirov"]
[Result "1-0"]
[WhiteElo "2945"]
[BlackElo "2808"]
[TimeControl "180+1"]
[EndTime "8:39:21 PDT"]
[Termination "Durarbayli won by resignation"]

1. e4 {[%clk 0:03:00.9]} 1... e5 {[%clk 0:03:00]} 2. Nf3 {[%clk 0:03:01.3]} 2...
Nc6 {[%clk 0:03:00]} 3. d4 {[%clk 0:03:02]} 3... exd4 {[%clk 0:02:59.4]} 4. Nxd4
{[%clk 0:03:02.9]} 4... Qf6 {[%clk 0:02:59.4]} 5. Ne2 {[%clk 0:02:58.3]} 5...
Bc5 {[%clk 0:02:49.9]} 6. Nf4 {[%clk 0:02:58]} 6... Nge7 {[%clk 0:02:46.3]} 7.
Nc3 {[%clk 0:02:57.7]} 7... d6 {[%clk 0:02:42.6]} 8. Be2 {[%clk 0:02:52.9]} 8...
Be6 {[%clk 0:02:35]} 9. O-O {[%clk 0:02:50.8]} 9... O-O-O {[%clk 0:02:27.2]} 10.
Ncd5 {[%clk 0:02:18.5]} 10... Bxd5 {[%clk 0:02:26]} 11. exd5 {[%clk 0:02:18.1]}
11... Ne5 {[%clk 0:02:25.5]} 12. Rb1 {[%clk 0:02:08.9]} 12... h5 {[%clk
0:02:09.7]} 13. b4 {[%clk 0:02:07.4]} 13... Bd4 {[%clk 0:02:08.3]} 14. Kh1
{[%clk 0:01:54.8]} 14... Ng4 {[%clk 0:01:50.7]} 15. Bxg4+ {[%clk 0:01:51.1]}
15... hxg4 {[%clk 0:01:49.6]} 16. Qxg4+ {[%clk 0:01:52]} 16... Kb8 {[%clk
0:01:47.3]} 17. Rb3 {[%clk 0:01:39.7]} 17... Rh4 {[%clk 0:01:44.3]} 18. Qf3
{[%clk 0:01:29.7]} 18... Rdh8 {[%clk 0:01:26.2]} 19. h3 {[%clk 0:01:29.9]} 19...
Be5 {[%clk 0:01:13.6]} 20. Ne2 {[%clk 0:01:25.1]} 20... Nf5 {[%clk 0:01:12.3]}
21. Qd3 {[%clk 0:00:54.9]} 21... g5 {[%clk 0:01:09.9]} 22. f4 {[%clk 0:00:50.2]}
22... gxf4 {[%clk 0:00:37]} 23. Bxf4 {[%clk 0:00:49.5]} 23... Bxf4 {[%clk
0:00:33.6]} 24. Rxf4 {[%clk 0:00:43.9]} 24... Qa1+ {[%clk 0:00:28.4]} 25. Kh2
{[%clk 0:00:37.1]} 25... Rxf4 {[%clk 0:00:27.4]} 26. Nxf4 {[%clk 0:00:37]} 26...
Qe5 {[%clk 0:00:27.9]} 27. Qd2 {[%clk 0:00:29.6]} 27... Rh4 {[%clk 0:00:18.1]}
28. Rf3 {[%clk 0:00:29.8]} 28... Nd4 {[%clk 0:00:16.4]} 29. Rf2 {[%clk
0:00:16.5]} 29... b5 {[%clk 0:00:15.2]} 30. c3 {[%clk 0:00:15.6]} 30... Nf5
{[%clk 0:00:15.4]} 31. g3 {[%clk 0:00:12]} 31... Rh8 {[%clk 0:00:15]} 32. Qe2
{[%clk 0:00:11]} 32... Qxc3 {[%clk 0:00:12.2]} 33. Qxb5+ {[%clk 0:00:10.9]}
33... Kc8 {[%clk 0:00:12.2]} 34. Qd3 {[%clk 0:00:07]} 34... Qxd3 {[%clk
0:00:10.6]} 35. Nxd3 {[%clk 0:00:07.9]} 35... Ne3 {[%clk 0:00:10.4]} 36. Rxf7
{[%clk 0:00:07.4]} 36... Nxd5 {[%clk 0:00:10.6]} 37. b5 {[%clk 0:00:07.9]} 37...
Re8 {[%clk 0:00:10.3]} 38. h4 {[%clk 0:00:07.7]} 38... Re3 {[%clk 0:00:10.6]}
39. Nf4 {[%clk 0:00:07.8]} 39... Nxf4 {[%clk 0:00:09.6]} 40. Rxf4 {[%clk
0:00:08.5]} 40... Re2+ {[%clk 0:00:08.8]} 41. Kh3 {[%clk 0:00:08.6]} 41... Rxa2
{[%clk 0:00:08.3]} 42. h5 {[%clk 0:00:09.2]} 42... Ra1 {[%clk 0:00:08.4]} 43.
Kh4 {[%clk 0:00:08.1]} 43... a5 {[%clk 0:00:07.4]} 44. bxa6 {[%clk 0:00:07.9]}
44... Rxa6 {[%clk 0:00:06.5]} 45. h6 {[%clk 0:00:08.5]} 45... Kd7 {[%clk
0:00:06.5]} 46. h7 {[%clk 0:00:08.2]} 46... Ra1 {[%clk 0:00:05.1]} 47. Kg5
{[%clk 0:00:07.7]} 47... Rh1 {[%clk 0:00:04.1]} 48. Rh4 {[%clk 0:00:07.9]} 1-0

[Event "Early-Titled-Tuesday-Blitz-April-02-2024"]
[Site "Chess.com"]
[Date "2024.04.02"]
[Round "4"]
[White "YouJustFoundYourGodfather"]
[Black "sokidze"]
[Result "0-1"]
[WhiteElo "2587"]
[BlackElo "2790"]
[TimeControl "180+1"]
[EndTime "8:39:21 PDT"]
[Termination "sokidze won by resignation"]

1. d4 {[%clk 0:02:57.7]} 1... d5 {[%clk 0:02:59]} 2. Nf3 {[%clk 0:02:56.2]} 2...
Nf6 {[%clk 0:02:59.2]} 3. g3 {[%clk 0:02:56.3]} 3... c5 {[%clk 0:02:59.2]} 4.
Bg2 {[%clk 0:02:56.4]} 4... cxd4 {[%clk 0:02:59.8]} 5. O-O {[%clk 0:02:56.2]}
5... h6 {[%clk 0:03:00.5]} 6. a4 {[%clk 0:02:53.7]} 6... e6 {[%clk 0:02:53.7]}
7. Nxd4 {[%clk 0:02:53.5]} 7... e5 {[%clk 0:02:53.7]} 8. Nb3 {[%clk 0:02:53.5]}
8... Nc6 {[%clk 0:02:41.6]} 9. Nc3 {[%clk 0:02:42.9]} 9... Be6 {[%clk
0:02:39.6]} 10. f4 {[%clk 0:02:33.5]} 10... exf4 {[%clk 0:02:33.7]} 11. Bxf4
{[%clk 0:02:34.4]} 11... Be7 {[%clk 0:02:30.3]} 12. Kh1 {[%clk 0:02:25.2]} 12...
O-O {[%clk 0:02:29.2]} 13. Qd3 {[%clk 0:02:23.4]} 13... Qd7 {[%clk 0:02:03.6]}
14. a5 {[%clk 0:02:18]} 14... Nb4 {[%clk 0:01:53.8]} 15. Qd2 {[%clk 0:02:15.2]}
15... Bh3 {[%clk 0:01:52.8]} 16. Be5 {[%clk 0:02:06.3]} 16... Bxg2+ {[%clk
0:01:50.6]} 17. Kxg2 {[%clk 0:02:07.2]} 17... Qe6 {[%clk 0:01:44.6]} 18. Bd4
{[%clk 0:01:49.5]} 18... Ne4 {[%clk 0:01:43]} 19. Qd1 {[%clk 0:01:33.7]} 19...
Nxc3 {[%clk 0:01:41.8]} 20. bxc3 {[%clk 0:01:27.7]} 20... Qe4+ {[%clk
0:01:41.8]} 21. Kg1 {[%clk 0:01:15.5]} 21... Nxc2 {[%clk 0:01:38.7]} 22. Rf4
{[%clk 0:01:14.5]} 22... Qg6 {[%clk 0:01:31.7]} 23. Rb1 {[%clk 0:01:10.3]} 23...
Bg5 {[%clk 0:01:21.3]} 24. Rf3 {[%clk 0:01:03.3]} 24... Na3 {[%clk 0:00:48.4]}
25. Ra1 {[%clk 0:01:02.8]} 25... Nc4 {[%clk 0:00:49.1]} 26. Nc5 {[%clk
0:00:54.4]} 26... b6 {[%clk 0:00:46.4]} 27. Nd3 {[%clk 0:00:47.7]} 27... Nxa5
{[%clk 0:00:42.7]} 28. h4 {[%clk 0:00:42.6]} 28... Be7 {[%clk 0:00:40.2]} 29.
Nf4 {[%clk 0:00:35.7]} 29... Qc6 {[%clk 0:00:35.6]} 30. Qd3 {[%clk 0:00:27.7]}
30... Nc4 {[%clk 0:00:28.7]} 31. Nh5 {[%clk 0:00:20.6]} 31... Bc5 {[%clk
0:00:10]} 32. Kh2 {[%clk 0:00:09.1]} 32... Bxd4 {[%clk 0:00:08.5]} 33. Qxd4
{[%clk 0:00:10]} 33... f6 {[%clk 0:00:07.6]} 34. Nf4 {[%clk 0:00:06.9]} 34...
Ne5 {[%clk 0:00:06.8]} 35. Rff1 {[%clk 0:00:07.6]} 35... Rfd8 {[%clk 0:00:05.8]}
36. Rad1 {[%clk 0:00:06.7]} 36... Kh7 {[%clk 0:00:03.5]} 37. Nxd5 {[%clk
0:00:05.2]} 37... Kh8 {[%clk 0:00:03.9]} 38. Qf4 {[%clk 0:00:02.3]} 38... Rxd5
{[%clk 0:00:03.6]} 39. Qe4 {[%clk 0:00:02.4]} 39... Rad8 {[%clk 0:00:03.9]} 40.
c4 {[%clk 0:00:03]} 40... Qxc4 {[%clk 0:00:04.2]} 41. Rxd5 {[%clk 0:00:02.6]}
41... Qxe4 {[%clk 0:00:03.7]} 42. Rxd8+ {[%clk 0:00:02.5]} 42... Kh7 {[%clk
0:00:04.4]} 43. Rd2 {[%clk 0:00:03.1]} 43... Ng4+ {[%clk 0:00:04.5]} 0-1

[Event "Early-Titled-Tuesday-Blitz-April-02-2024"]
[Site "Chess.com"]
[Date "2024.04.02"]
[Round "4"]
[White "IriBu"]
[Black "LeninGuerra"]
[Result "1-0"]
[WhiteElo "2581"]
[BlackElo "2715"]
[TimeControl "180+1"]
[EndTime "8:39:21 PDT"]
[Termination "IriBu won by checkmate"]

1. e4 {[%clk 0:03:00.9]} 1... c5 {[%clk 0:02:57.4]} 2. g3 {[%clk 0:02:59.1]}
2... b6 {[%clk 0:02:56.6]} 3. Bg2 {[%clk 0:02:58.6]} 3... Bb7 {[%clk 0:02:57.2]}
4. d3 {[%clk 0:02:57.5]} 4... e6 {[%clk 0:02:57.6]} 5. Nf3 {[%clk 0:02:54.9]}
5... d6 {[%clk 0:02:57.8]} 6. O-O {[%clk 0:02:54.6]} 6... Nd7 {[%clk 0:02:58.1]}
7. c3 {[%clk 0:02:54.7]} 7... Ngf6 {[%clk 0:02:58.7]} 8. Re1 {[%clk 0:02:53.1]}
8... Be7 {[%clk 0:02:58.9]} 9. Nbd2 {[%clk 0:02:53.1]} 9... O-O {[%clk
0:02:58.1]} 10. a4 {[%clk 0:02:48.5]} 10... Rc8 {[%clk 0:02:58.1]} 11. h3 {[%clk
0:02:44]} 11... Rc7 {[%clk 0:02:58.1]} 12. b3 {[%clk 0:02:40.6]} 12... Qa8
{[%clk 0:02:57.6]} 13. Bb2 {[%clk 0:02:40.5]} 13... e5 {[%clk 0:02:56.8]} 14.
Nf1 {[%clk 0:02:36.8]} 14... Rd8 {[%clk 0:02:53.2]} 15. Ne3 {[%clk 0:02:36.8]}
15... Bf8 {[%clk 0:02:50]} 16. c4 {[%clk 0:02:36.2]} 16... g6 {[%clk 0:02:46.4]}
17. Nd5 {[%clk 0:02:35.8]} 17... Nxd5 {[%clk 0:02:43]} 18. exd5 {[%clk
0:02:34.9]} 18... Bg7 {[%clk 0:02:40.6]} 19. Nd2 {[%clk 0:02:34]} 19... f5
{[%clk 0:02:15.3]} 20. f4 {[%clk 0:02:29.9]} 20... Qc8 {[%clk 0:02:13.3]} 21.
Nf3 {[%clk 0:02:27.7]} 21... Re8 {[%clk 0:02:10.8]} 22. Ng5 {[%clk 0:02:21]}
22... Nf8 {[%clk 0:02:10.5]} 23. fxe5 {[%clk 0:02:12.5]} 23... dxe5 {[%clk
0:02:11.4]} 24. Qd2 {[%clk 0:02:07.1]} 24... h6 {[%clk 0:02:09]} 25. Nf3 {[%clk
0:02:05.6]} 25... Rce7 {[%clk 0:01:36.6]} 26. Re2 {[%clk 0:02:05.1]} 26... Qc7
{[%clk 0:01:30.9]} 27. Kh2 {[%clk 0:01:57.9]} 27... Qd6 {[%clk 0:01:28.5]} 28.
Rae1 {[%clk 0:01:56.4]} 28... Nd7 {[%clk 0:01:29]} 29. Nh4 {[%clk 0:01:48.9]}
29... Kh7 {[%clk 0:01:23.3]} 30. Bc3 {[%clk 0:01:47.1]} 30... Bf6 {[%clk
0:01:23.3]} 31. Nf3 {[%clk 0:01:46.4]} 31... a6 {[%clk 0:01:17]} 32. Qb2 {[%clk
0:01:44.7]} 32... b5 {[%clk 0:01:14.1]} 33. axb5 {[%clk 0:01:42.9]} 33... axb5
{[%clk 0:01:15]} 34. Qd2 {[%clk 0:01:43]} 34... b4 {[%clk 0:01:14.9]} 35. Bb2
{[%clk 0:01:42.9]} 35... e4 {[%clk 0:00:57.6]} 36. dxe4 {[%clk 0:01:34.8]} 36...
fxe4 {[%clk 0:00:56.9]} 37. Bxf6 {[%clk 0:01:24]} 37... Nxf6 {[%clk 0:00:57.8]}
38. Nh4 {[%clk 0:01:20.4]} 38... Nh5 {[%clk 0:00:54.5]} 39. Qe3 {[%clk
0:01:18.5]} 39... Re5 {[%clk 0:00:52.4]} 40. Kg1 {[%clk 0:01:03.5]} 40... Rg5
{[%clk 0:00:48.4]} 41. g4 {[%clk 0:00:59]} 41... Nf4 {[%clk 0:00:47.8]} 42. Rf2
{[%clk 0:00:55.7]} 42... Nxg2 {[%clk 0:00:33.1]} 43. Nxg2 {[%clk 0:00:49.5]}
43... Re7 {[%clk 0:00:32.9]} 44. Ref1 {[%clk 0:00:48.8]} 44... Qd7 {[%clk
0:00:30.2]} 45. Rf6 {[%clk 0:00:46.3]} 45... Rge5 {[%clk 0:00:23]} 46. Nf4
{[%clk 0:00:44.6]} 46... Rf7 {[%clk 0:00:17.5]} 47. Rxf7+ {[%clk 0:00:27.5]}
47... Qxf7 {[%clk 0:00:16.8]} 48. Nd3 {[%clk 0:00:26.4]} 48... Qe7 {[%clk
0:00:12.8]} 49. Nxe5 {[%clk 0:00:26.4]} 49... Qxe5 {[%clk 0:00:13.7]} 50. Rf7+
{[%clk 0:00:26.3]} 50... Kg8 {[%clk 0:00:14.1]} 51. Rxb7 {[%clk 0:00:27]} 51...
Qa1+ {[%clk 0:00:13.1]} 52. Kg2 {[%clk 0:00:25.1]} 52... Qb1 {[%clk 0:00:11.1]}
53. Qf2 {[%clk 0:00:24]} 53... e3 {[%clk 0:00:10.9]} 54. Qf7+ {[%clk 0:00:23.5]}
54... Kh8 {[%clk 0:00:10.7]} 55. Qg7# {[%clk 0:00:24.4]} 1-0

[Event "Early-Titled-Tuesday-Blitz-April-02-2024"]
[Site "Chess.com"]
[Date "2024.04.02"]
[Round "4"]
[White "PonyQueen07"]
[Black "NowInChess"]
[Result "1-0"]
[WhiteElo "2191"]
[BlackElo "2247"]
[TimeControl "180+1"]
[EndTime "8:39:21 PDT"]
[Termination "PonyQueen07 won on time"]

1. c4 {[%clk 0:03:00.9]} 1... e5 {[%clk 0:02:57.8]} 2. Nc3 {[%clk 0:03:00.3]}
2... Nf6 {[%clk 0:02:56.9]} 3. g3 {[%clk 0:02:59.4]} 3... g6 {[%clk 0:02:56.6]}
4. Bg2 {[%clk 0:02:59.1]} 4... Bg7 {[%clk 0:02:57.2]} 5. e4 {[%clk 0:02:56.9]}
5... O-O {[%clk 0:02:56.8]} 6. Nge2 {[%clk 0:02:57.2]} 6... d6 {[%clk
0:02:56.8]} 7. O-O {[%clk 0:02:57.7]} 7... Nc6 {[%clk 0:02:55.4]} 8. d3 {[%clk
0:02:58.1]} 8... a5 {[%clk 0:02:43.9]} 9. Be3 {[%clk 0:02:56.5]} 9... Ng4 {[%clk
0:02:41.8]} 10. Bd2 {[%clk 0:02:39.3]} 10... f5 {[%clk 0:02:38.5]} 11. h3 {[%clk
0:02:36.7]} 11... Nf6 {[%clk 0:02:36.6]} 12. exf5 {[%clk 0:02:34.7]} 12... Bxf5
{[%clk 0:02:33.4]} 13. Bg5 {[%clk 0:02:33.8]} 13... Qd7 {[%clk 0:02:31.5]} 14.
Kh2 {[%clk 0:02:05]} 14... h6 {[%clk 0:02:18.4]} 15. Bxf6 {[%clk 0:02:04.8]}
15... Bxf6 {[%clk 0:02:14.1]} 16. Nd5 {[%clk 0:01:44.8]} 16... Bg7 {[%clk
0:02:13.1]} 17. Ne3 {[%clk 0:01:38.4]} 17... Be6 {[%clk 0:02:07.7]} 18. f4
{[%clk 0:01:29.8]} 18... Kh7 {[%clk 0:01:55.3]} 19. Qd2 {[%clk 0:01:13.2]} 19...
Rae8 {[%clk 0:01:46.4]} 20. fxe5 {[%clk 0:01:07.3]} 20... Nxe5 {[%clk
0:01:42.1]} 21. Nf4 {[%clk 0:00:57.1]} 21... Bg8 {[%clk 0:01:28.5]} 22. Rac1
{[%clk 0:00:38.2]} 22... c6 {[%clk 0:01:21]} 23. d4 {[%clk 0:00:37.3]} 23... Nf7
{[%clk 0:01:15.1]} 24. Qd3 {[%clk 0:00:28.3]} 24... Nh8 {[%clk 0:00:59.8]} 25.
Rce1 {[%clk 0:00:17.7]} 25... Re7 {[%clk 0:00:44.3]} 26. Ng4 {[%clk 0:00:14]}
26... Rfe8 {[%clk 0:00:41.1]} 27. Rxe7 {[%clk 0:00:14]} 27... Qxe7 {[%clk
0:00:39.8]} 28. Rf2 {[%clk 0:00:10.7]} 28... Qf7 {[%clk 0:00:34.4]} 29. Re2
{[%clk 0:00:07.1]} 29... Rxe2 {[%clk 0:00:33]} 30. Qxe2 {[%clk 0:00:06.7]} 30...
Qxc4 {[%clk 0:00:33.6]} 31. Qe4 {[%clk 0:00:04.6]} 31... Bd5 {[%clk 0:00:30.3]}
32. Qe7 {[%clk 0:00:03.3]} 32... Bf7 {[%clk 0:00:23.1]} 33. Qd8 {[%clk
0:00:02.1]} 33... Qxd4 {[%clk 0:00:19.5]} 34. Qe7 {[%clk 0:00:02.4]} 34... Qc4
{[%clk 0:00:16.7]} 35. h4 {[%clk 0:00:02.3]} 35... h5 {[%clk 0:00:15.1]} 36.
Nf6+ {[%clk 0:00:01.6]} 36... Bxf6 {[%clk 0:00:13.7]} 37. Qxf6 {[%clk
0:00:02.5]} 37... Qc2 {[%clk 0:00:10.9]} 38. Kh3 {[%clk 0:00:02.3]} 38... Qb1
{[%clk 0:00:09.5]} 39. Kh2 {[%clk 0:00:02.2]} 39... Qc2 {[%clk 0:00:09.3]} 40.
Kh1 {[%clk 0:00:02]} 40... Qf5 {[%clk 0:00:09.8]} 41. Qe7 {[%clk 0:00:02]} 41...
Qb1+ {[%clk 0:00:09.2]} 42. Kh2 {[%clk 0:00:02.3]} 42... Qxa2 {[%clk 0:00:09.6]}
43. Be4 {[%clk 0:00:02.4]} 43... Kh6 {[%clk 0:00:01.4]} 44. Qf6 {[%clk 0:00:02]}
1-0

[Event "Early-Titled-Tuesday-Blitz-April-02-2024"]
[Site "Chess.com"]
[Date "2024.04.02"]
[Round "4"]
[White "GM4life"]
[Black "Egor_Koshulyan"]
[Result "1-0"]
[WhiteElo "2587"]
[BlackElo "2735"]
[TimeControl "180+1"]
[EndTime "8:39:23 PDT"]
[Termination "GM4life won on time"]

1. d4 {[%clk 0:03:00.9]} 1... Nf6 {[%clk 0:02:59.6]} 2. Nf3 {[%clk 0:03:01.4]}
2... d5 {[%clk 0:02:59.9]} 3. c4 {[%clk 0:03:00.9]} 3... e6 {[%clk 0:02:59.9]}
4. g3 {[%clk 0:02:54.3]} 4... dxc4 {[%clk 0:03:00]} 5. Bg2 {[%clk 0:02:54]} 5...
a6 {[%clk 0:02:59.9]} 6. O-O {[%clk 0:02:45.6]} 6... Nc6 {[%clk 0:03:00.3]} 7.
a4 {[%clk 0:02:35.6]} 7... Rb8 {[%clk 0:02:57.6]} 8. e3 {[%clk 0:02:30.1]} 8...
b5 {[%clk 0:02:54.5]} 9. Qe2 {[%clk 0:02:29.7]} 9... Be7 {[%clk 0:02:49.3]} 10.
Nfd2 {[%clk 0:02:23.5]} 10... Nb4 {[%clk 0:02:42.9]} 11. Nc3 {[%clk 0:02:17.4]}
11... O-O {[%clk 0:02:42.1]} 12. axb5 {[%clk 0:02:10.2]} 12... axb5 {[%clk
0:02:43]} 13. Ra5 {[%clk 0:02:10]} 13... c6 {[%clk 0:02:37.5]} 14. Ra7 {[%clk
0:02:06.3]} 14... Bb7 {[%clk 0:02:29.2]} 15. b3 {[%clk 0:01:52.5]} 15... Qb6
{[%clk 0:02:11.4]} 16. Ra1 {[%clk 0:01:47.7]} 16... Nbd5 {[%clk 0:02:05.9]} 17.
Bb2 {[%clk 0:01:41.8]} 17... Ba6 {[%clk 0:01:48.8]} 18. bxc4 {[%clk 0:01:32.8]}
18... bxc4 {[%clk 0:01:49.7]} 19. Rfb1 {[%clk 0:01:27.9]} 19... Bb5 {[%clk
0:01:21.1]} 20. Qd1 {[%clk 0:01:17]} 20... Qc7 {[%clk 0:01:19.1]} 21. e4 {[%clk
0:01:13.6]} 21... Nb4 {[%clk 0:01:16.4]} 22. Ba3 {[%clk 0:01:02.2]} 22... Nd3
{[%clk 0:01:12.4]} 23. Bxe7 {[%clk 0:01:01.9]} 23... Qxe7 {[%clk 0:01:13.3]} 24.
Qc2 {[%clk 0:00:54.6]} 24... e5 {[%clk 0:01:07.6]} 25. d5 {[%clk 0:00:51.9]}
25... Qc5 {[%clk 0:01:05.8]} 26. Nf1 {[%clk 0:00:45.1]} 26... Ng4 {[%clk
0:00:58.3]} 27. Nd1 {[%clk 0:00:40.4]} 27... cxd5 {[%clk 0:00:47.5]} 28. exd5
{[%clk 0:00:40]} 28... Rfc8 {[%clk 0:00:48]} 29. h3 {[%clk 0:00:35.5]} 29... Nf6
{[%clk 0:00:43.6]} 30. Nfe3 {[%clk 0:00:36]} 30... c3 {[%clk 0:00:24.9]} 31.
Nxc3 {[%clk 0:00:32]} 31... Qxc3 {[%clk 0:00:23.5]} 32. Qxc3 {[%clk 0:00:32.2]}
32... Rxc3 {[%clk 0:00:24.4]} 33. Rxb5 {[%clk 0:00:32.2]} 33... Rbc8 {[%clk
0:00:22.8]} 34. d6 {[%clk 0:00:26.2]} 34... g6 {[%clk 0:00:19.8]} 35. Bb7 {[%clk
0:00:20.3]} 35... Rd8 {[%clk 0:00:19.5]} 36. Rb6 {[%clk 0:00:15.4]} 36... Nc5
{[%clk 0:00:12.7]} 37. Bf3 {[%clk 0:00:10.8]} 37... e4 {[%clk 0:00:11.1]} 38.
Be2 {[%clk 0:00:10.8]} 38... Ne6 {[%clk 0:00:09.8]} 39. Rd1 {[%clk 0:00:09.3]}
39... Nd7 {[%clk 0:00:08.4]} 40. Rb7 {[%clk 0:00:09.2]} 40... Ne5 {[%clk
0:00:08.9]} 41. Ng4 {[%clk 0:00:08.2]} 41... Nxg4 {[%clk 0:00:04.4]} 42. hxg4
{[%clk 0:00:09.1]} 42... Nc5 {[%clk 0:00:03.3]} 43. Rc7 {[%clk 0:00:08.4]} 43...
Na4 {[%clk 0:00:02.7]} 44. Ra1 {[%clk 0:00:06.5]} 44... Nb6 {[%clk 0:00:02.3]}
45. Rxc3 {[%clk 0:00:06.1]} 1-0